fUST/lending_fUST_20240824
["ID","MTS","AMOUNT","RATE_DAILY","PERIOD"]
[335747693,1724475046074,-254.71393384,0.00013698,2]
[335747694,1724475046084,-500.0,0.00013698,2]
[335747695,1724475046093,-1109.15,0.00013698,2]
[335747696,1724475046103,-1313.38,0.00013698,2]
[335747697,1724475046112,-500.0,0.00013698,2]
[335747698,1724475046121,-500.0,0.00013698,2]
[335747699,1724475046130,-159.93009355,0.00013698,2]
[335747700,1724475046140,-612.58,0.00013698,2]
[335747701,1724475046148,-500.0,0.00013698,2]
[335747702,1724475046157,-872.89,0.00013698,2]
[335747703,1724475046167,-500.0,0.00013698,2]
[335747704,1724475046176,-1208.93,0.00013698,2]
[335747705,1724475046187,-9746.34,0.00013698,2]
[335747706,1724475046199,-500.0,0.00013698,2]
[335747707,1724475046208,-534.06379751,0.00013698,2]
[335747708,1724475046216,-840.99,0.00013698,2]
[335747709,1724475046225,-635.4,0.00013698,2]
[335747710,1724475046234,-1155.01,0.00013698,2]
[335747711,1724475046243,-500.0,0.00013698,2]
[335747712,1724475046252,-500.0,0.00013698,2]
[335747713,1724475046261,-900.52,0.00013698,2]
[335747714,1724475046271,-518.18,0.00013698,2]
[335747715,1724475046281,-1349.93,0.00013698,2]
[335747716,1724475046290,-3503.63,0.00013698,2]
[335747717,1724475046299,-929.14,0.00013698,2]
[335747718,1724475046308,-500.0,0.00013698,2]
[335747719,1724475046318,-500.0,0.00013698,2]
[335747720,1724475046330,-11510.78,0.00013698,2]
[335747721,1724475046339,-1000.0,0.00013698,2]
[335747722,1724475046349,-500.0,0.00013698,2]
[335747723,1724475046358,-500.0,0.00013698,2]
[335747724,1724475046367,-2331.79,0.00013698,2]
[335747725,1724475046376,-7351.99,0.00013698,2]
[335747726,1724475046385,-806.38,0.00013698,2]
[335747727,1724475046395,-806.38,0.00013698,2]
[335747728,1724475046405,-2443.15,0.00013698,2]
[335747729,1724475046415,-1274.21,0.00013698,2]
[335747730,1724475046424,-806.38,0.00013698,2]
[335747731,1724475046443,-500.0,0.00013698,2]
[335747732,1724475046452,-806.38,0.00013698,2]
[335747733,1724475046462,-806.38,0.00013698,2]
[335747734,1724475046471,-806.38,0.00013698,2]
[335747735,1724475046480,-806.38,0.00013698,2]
[335747736,1724475046489,-806.38,0.00013698,2]
[335747737,1724475046498,-806.38,0.00013698,2]
[335747738,1724475046507,-806.38,0.00013698,2]
[335747739,1724475046516,-806.38,0.00013698,2]
[335747740,1724475046525,-500.0,0.00013698,2]
[335747741,1724475046534,-806.38,0.00013698,2]
[335747742,1724475046544,-500.0,0.00013698,2]
[335747743,1724475046553,-806.38,0.00013698,2]
[335747744,1724475046561,-806.38,0.00013698,2]
[335747745,1724475046571,-806.38,0.00013698,2]
[335747746,1724475046580,-563.09,0.00013698,2]
[335747747,1724475046589,-806.38,0.00013698,2]
[335747748,1724475046598,-806.38,0.00013698,2]
[335747749,1724475046607,-806.38,0.00013698,2]
[335747750,1724475046617,-744.33,0.00013698,2]
[335747751,1724475046628,-10568.12,0.00013698,2]
[335747752,1724475046638,-6483.53,0.00013698,2]
[335747753,1724475046647,-500.0,0.00013698,2]
[335747754,1724475046656,-2288.05,0.00013698,2]
[335747755,1724475046665,-500.0,0.00013698,2]
[335747756,1724475046675,-1021.34,0.00013698,2]
[335747757,1724475046687,-503.18446818,0.00013698,2]
[335747758,1724475046696,-500.0,0.00013698,2]
[335747759,1724475046705,-527.49750531,0.00013698,2]
[335747760,1724475046716,-500.0,0.00013698,2]
[335747761,1724475046725,-944.1,0.00013698,2]
[335747762,1724475046734,-500.0,0.00013698,2]
[335747763,1724475046743,-500.0,0.00013698,2]
[335747764,1724475046753,-500.0,0.00013698,2]
[335747765,1724475046762,-548.48,0.00013698,2]
[335747766,1724475046775,-848.24,0.00013698,2]
[335747767,1724475046795,-742.01,0.00013698,2]
[335747768,1724475046805,-500.0,0.00013698,2]
[335747769,1724475046815,-861.37,0.00013698,2]
[335747770,1724475046825,-693.07,0.00013698,2]
[335747771,1724475046835,-4811.84,0.00013698,2]
[335747772,1724475046845,-500.0,0.00013698,2]
[335747773,1724475046856,-500.0,0.00013698,2]
[335747774,1724475046866,-500.0,0.00013698,2]
[335747775,1724475046875,-500.0,0.00013698,2]
[335747776,1724475046885,-500.0,0.00013698,2]
[335747777,1724475046894,-2242.93,0.00013698,2]
[335747778,1724475046903,-2557.18,0.00013698,2]
[335747779,1724475046912,-500.0,0.00013698,2]
[335747780,1724475046922,-500.0,0.00013698,2]
[335747781,1724475046931,-519.21642088,0.00013698,2]
[335747782,1724475046940,-953.8,0.00013698,2]
[335747783,1724475046949,-500.0,0.00013698,2]
[335747784,1724475046958,-6706.13,0.00013698,2]
[335747785,1724475046967,-500.0,0.00013698,2]
[335747786,1724475046977,-416.90936469,0.00013698,2]
[335747787,1724475046987,-500.0,0.00013698,2]
[335747788,1724475046996,-658.81,0.00013698,2]
[335747789,1724475047005,-500.0,0.00013698,2]
[335747790,1724475047014,-500.56863178,0.00013698,2]
[335747791,1724475047023,-602.76,0.00013698,2]
[335747792,1724475047033,-1412.04,0.00013698,2]
[335747793,1724475047042,-500.0,0.00013698,2]
[335747794,1724475047051,-500.0,0.00013698,2]
[335747795,1724475047060,-332.92760639,0.00013698,2]
[335747796,1724475047069,-500.0,0.00013698,2]
[335747797,1724475047079,-500.0,0.00013698,2]
[335747798,1724475047088,-1101.2,0.00013698,2]
[335747799,1724475047097,-500.0,0.00013698,2]
[335747800,1724475047106,-500.0,0.00013698,2]
[335747801,1724475047115,-500.0,0.00013698,2]
[335747802,1724475047125,-3809.19,0.00013698,2]
[335747803,1724475047134,-1037.17,0.00013698,2]
[335747804,1724475047145,-500.0,0.00013698,2]
[335747805,1724475047154,-500.0,0.00013698,2]
[335747806,1724475047163,-576.51,0.00013698,2]
[335747807,1724475047172,-500.0,0.00013698,2]
[335747808,1724475047181,-3692.17,0.00013698,2]
[335747809,1724475047190,-940.12,0.00013698,2]
[335747810,1724475047199,-661.53,0.00013698,2]
[335747811,1724475047208,-500.0,0.00013698,2]
[335747812,1724475047217,-2945.52,0.00013698,2]
[335747813,1724475047228,-754.42,0.00013698,2]
[335747814,1724475047239,-500.0,0.00013698,2]
[335747815,1724475047249,-500.0,0.00013698,2]
[335747816,1724475047260,-2790.4,0.00013698,2]
[335747817,1724475047270,-2790.4,0.00013698,2]
[335747818,1724475047279,-2790.4,0.00013698,2]
[335747819,1724475047291,-2790.4,0.00013698,2]
[335747820,1724475047301,-500.0,0.00013698,2]
[335747821,1724475047312,-500.0,0.00013698,2]
[335747822,1724475047325,-2790.4,0.00013698,2]
[335747823,1724475047335,-2790.4,0.00013698,2]
[335747824,1724475047345,-2790.4,0.00013698,2]
[335747825,1724475047355,-500.0,0.00013698,2]
[335747826,1724475047365,-500.0,0.00013698,2]
[335747827,1724475047376,-622.11,0.00013698,2]
[335747828,1724475047385,-2790.4,0.00013698,2]
[335747829,1724475047394,-2790.4,0.00013698,2]
[335747830,1724475047404,-500.0,0.00013698,2]
[335747831,1724475047416,-500.0,0.00013698,2]
[335747832,1724475047427,-2790.4,0.00013698,2]
[335747833,1724475047438,-2790.4,0.00013698,2]
[335747834,1724475047450,-1105.63,0.00013698,2]
[335747835,1724475047460,-500.0,0.00013698,2]
[335747836,1724475047470,-500.0,0.00013698,2]
[335747837,1724475047480,-500.0,0.00013698,2]
[335747838,1724475047489,-917.01,0.00013698,2]
[335747839,1724475047499,-500.0,0.00013698,2]
[335747840,1724475047509,-957.88,0.00013698,2]
[335747841,1724475047518,-534.63057297,0.00013698,2]
[335747842,1724475047528,-559.02,0.00013698,2]
[335747843,1724475047538,-500.0,0.00013698,2]
[335747844,1724475047547,-500.0,0.00013698,2]
[335747845,1724475047557,-500.0,0.00013698,2]
[335747846,1724475047567,-966.95,0.00013698,2]
[335747847,1724475047577,-500.0,0.00013698,2]
[335747848,1724475047586,-2601.23,0.00013698,2]
[335747849,1724475047596,-533.12472795,0.00013698,2]
[335747850,1724475047606,-1782.14,0.00013698,2]
[335747851,1724475047616,-500.0,0.00013698,2]
[335747852,1724475047626,-500.0,0.00013698,2]
[335747853,1724475047636,-500.0,0.00013698,2]
[335747854,1724475047646,-500.0,0.00013698,2]
[335747855,1724475047656,-566.06,0.00013698,2]
[335747856,1724475047666,-10332.39,0.00013698,2]
[335747857,1724475047676,-500.0,0.00013698,2]
[335747858,1724475047686,-846.73,0.00013698,2]
[335747859,1724475047696,-1908.4,0.00013698,2]
[335747860,1724475047706,-500.0,0.00013698,2]
[335747861,1724475047716,-500.0,0.00013698,2]
[335747862,1724475047725,-3057.13,0.00013698,2]
[335747863,1724475047735,-500.0,0.00013698,2]
[335747864,1724475047745,-664.47,0.00013698,2]
[335747865,1724475047755,-500.0,0.00013698,2]
[335747866,1724475047765,-2269.56,0.00013698,2]
[335747867,1724475047777,-500.0,0.00013698,2]
[335747868,1724475047787,-500.0,0.00013698,2]
[335747869,1724475047797,-21954.93,0.00013698,2]
[335747870,1724475047807,-500.0,0.00013698,2]
[335747871,1724475047818,-1471.4,0.00013698,2]
[335747872,1724475047829,-500.0,0.00013698,2]
[335747873,1724475047839,-3747.84,0.00013698,2]
[335747874,1724475047850,-500.0,0.00013698,2]
[335747875,1724475047861,-500.0,0.00013698,2]
[335747876,1724475047871,-699.13,0.00013698,2]
[335747877,1724475047881,-500.0,0.00013698,2]
[335747878,1724475047890,-500.0,0.00013698,2]
[335747879,1724475047901,-500.0,0.00013698,2]
[335747880,1724475047912,-500.0,0.00013698,2]
[335747881,1724475047921,-492.81704205,0.00013698,2]
[335747882,1724475047932,-500.0,0.00013698,2]
[335747883,1724475047943,-500.0,0.00013698,2]
[335747884,1724475047953,-500.0,0.00013698,2]
[335747885,1724475047962,-500.0,0.00013698,2]
[335747886,1724475047972,-524.40759916,0.00013698,2]
[335747887,1724475047982,-500.0,0.00013698,2]
[335747888,1724475047992,-500.0,0.00013698,2]
[335747889,1724475048004,-389.45330612,0.00013698,2]
[335747890,1724475048014,-2104.91,0.00013698,2]
[335747891,1724475048023,-500.0,0.00013698,2]
[335747892,1724475048033,-515.1272377,0.00013698,2]
[335747893,1724475048043,-4940.0,0.00013698,2]
[335747894,1724475048053,-500.0,0.00013698,2]
[335747895,1724475048064,-500.0,0.00013698,2]
[335747896,1724475048073,-500.0,0.00013698,2]
[335747897,1724475048083,-500.0,0.00013698,2]
[335747898,1724475048094,-907.21,0.00013698,2]
[335747899,1724475048104,-500.0,0.00013698,2]
[335747900,1724475048115,-500.0,0.00013698,2]
[335747901,1724475048127,-500.0,0.00013698,2]
[335747902,1724475048137,-500.0,0.00013698,2]
[335747903,1724475048148,-405.95815425,0.00013698,2]
[335747904,1724475048159,-500.0,0.00013698,2]
[335747905,1724475048168,-658.07,0.00013698,2]
[335747906,1724475048181,-3165.38,0.00013698,2]
[335747907,1724475048190,-500.0,0.00013698,2]
[335747908,1724475048199,-1289.3,0.00013698,2]
[335747909,1724475048208,-500.0,0.00013698,2]
[335747910,1724475048218,-3728.42,0.00013698,2]
[335747911,1724475048397,-500.0,0.00013698,2]
[335747912,1724475048423,-500.0,0.00013698,2]
[335747913,1724475048434,-500.0,0.00013698,2]
[335747914,1724475048444,-506.11145161,0.00013698,2]
[335747915,1724475048454,-5556.42,0.00013698,2]
[335747916,1724475048463,-500.0,0.00013698,2]
[335747917,1724475048473,-1306.95,0.00013698,2]
[335747918,1724475048483,-500.0,0.00013698,2]
[335747919,1724475048494,-500.0,0.00013698,2]
[335747920,1724475048506,-500.0,0.00013698,2]
[335747921,1724475048516,-500.0,0.00013698,2]
[335747922,1724475048528,-500.0,0.00013698,2]
[335747923,1724475048539,-500.0,0.00013698,2]
[335747924,1724475048551,-500.0,0.00013698,2]
[335747925,1724475048560,-500.0,0.00013698,2]
[335747926,1724475048570,-500.0,0.00013698,2]
[335747927,1724475048583,-464.28113837,0.00013698,2]
[335747928,1724475048594,-259.66926664,0.00013698,2]
[335747929,1724475048607,-9521.09,0.00013698,2]
[335747930,1724475048617,-500.0,0.00013698,2]
[335747931,1724475048628,-590.86,0.00013698,2]
[335747932,1724475048638,-500.37530072,0.00013698,2]
[335747933,1724475048649,-500.0,0.00013698,2]
[335747934,1724475048659,-19606.52,0.00013698,2]
[335747935,1724475048668,-14688.01,0.00013698,2]
[335747936,1724475048680,-1303.58,0.00013698,2]
[335747937,1724475048696,-681.7,0.00013698,2]
[335747938,1724475048706,-500.0,0.00013698,2]
[335747939,1724475048718,-500.0,0.00013698,2]
[335747940,1724475048728,-500.0,0.00013698,2]
[335747941,1724475048738,-500.0,0.00013698,2]
[335747942,1724475048747,-500.0,0.00013698,2]
[335747943,1724475048757,-500.0,0.00013698,2]
[335747944,1724475048767,-500.0,0.00013698,2]
[335747945,1724475048778,-500.0,0.00013698,2]
[335747946,1724475048788,-2263.7,0.00013698,2]
[335747947,1724475048798,-2735.15,0.00013698,2]
[335747948,1724475048809,-500.0,0.00013698,2]
[335747949,1724475048820,-500.0,0.00013698,2]
[335747950,1724475048830,-500.0,0.00013698,2]
[335747951,1724475048843,-615.94,0.00013698,2]
[335747952,1724475048856,-500.0,0.00013698,2]
[335747953,1724475048867,-1844.31,0.00013698,2]
[335747954,1724475048877,-500.0,0.00013698,2]
[335747955,1724475048888,-981.08,0.00013698,2]
[335747956,1724475048899,-343.97804973,0.00013698,2]
[335747957,1724475048910,-500.0,0.00013698,2]
[335747958,1724475048920,-1977.39,0.00013698,2]
[335747959,1724475048930,-5063.61,0.00013698,2]
[335747960,1724475048941,-2417.02,0.00013698,2]
[335747961,1724475048952,-500.0,0.00013698,2]
[335747962,1724475048962,-500.0,0.00013698,2]
[335747963,1724475048973,-942.63,0.00013698,2]
[335747964,1724475048984,-500.0,0.00013698,2]
[335747965,1724475048994,-500.0,0.00013698,2]
[335747966,1724475049004,-601.53,0.00013698,2]
[335747967,1724475049015,-820.92,0.00013698,2]
[335747968,1724475049027,-500.0,0.00013698,2]
[335747969,1724475049039,-500.25966525,0.00013698,2]
[335747970,1724475049051,-505.43898382,0.00013698,2]
[335747971,1724475049062,-500.0,0.00013698,2]
[335747972,1724475049073,-500.0,0.00013698,2]
[335747973,1724475049083,-576.64,0.00013698,2]
[335747974,1724475049093,-500.0,0.00013698,2]
[335747975,1724475049103,-500.0,0.00013698,2]
[335747976,1724475049113,-500.0,0.00013698,2]
[335747977,1724475049122,-561.11,0.00013698,2]
[335747978,1724475049133,-500.0,0.00013698,2]
[335747979,1724475049145,-525.97,0.00013698,2]
[335747980,1724475049156,-500.0,0.00013698,2]
[335747981,1724475049165,-12943.03,0.00013698,2]
[335747982,1724475049175,-500.0,0.00013698,2]
[335747983,1724475049186,-500.0,0.00013698,2]
[335747984,1724475049195,-500.85815529,0.00013698,2]
[335747985,1724475049205,-500.0,0.00013698,2]
[335747986,1724475049215,-1135.22,0.00013698,2]
[335747987,1724475049224,-500.0,0.00013698,2]
[335747988,1724475049234,-8696.6,0.00013698,2]
[335747989,1724475049244,-430.44001007,0.00013698,2]
[335747990,1724475049254,-1074.84,0.00013698,2]
[335747991,1724475049264,-427.47475264,0.00013698,2]
[335747992,1724475049274,-500.0,0.00013698,2]
[335747993,1724475049286,-582.02,0.00013698,2]
[335747994,1724475049298,-500.0,0.00013698,2]
[335747995,1724475049310,-500.42181622,0.00013698,2]
[335747996,1724475049321,-500.0,0.00013698,2]
[335747997,1724475049335,-449.81063824,0.00013698,2]
[335747998,1724475049344,-500.0,0.00013698,2]
[335747999,1724475049354,-1264.36,0.00013698,2]
[335748000,1724475049364,-1696.02,0.00013698,2]
[335748001,1724475049374,-1975.72,0.00013698,2]
[335748002,1724475049384,-500.0,0.00013698,2]
[335748003,1724475049394,-720.91,0.00013698,2]
[335748004,1724475049405,-1437.7,0.00013698,2]
[335748005,1724475049414,-2073.62,0.00013698,2]
[335748006,1724475049424,-151.0,0.00013699,2]
[335748007,1724475049434,-156.094882,0.00013699,2]
[335748008,1724475049443,-202.319256,0.00013699,2]
[335748009,1724475049453,-202.319256,0.00013699,2]
[335748010,1724475049464,-519.134108,0.00013699,2]
[335748011,1724475049473,-151.0,0.00013699,2]
[335748012,1724475049484,-180.571269,0.00013699,2]
[335748013,1724475049494,-519.134108,0.00013699,2]
[335748014,1724475049504,-180.571269,0.00013699,2]
[335748015,1724475049514,-151.0,0.00013699,2]
[335748016,1724475049524,-151.0,0.00013699,2]
[335748017,1724475049533,-1252.249933,0.00013699,2]
[335748018,1724475049544,-151.0,0.00013699,2]
[335748019,1724475049554,-151.0,0.00013699,2]
[335748020,1724475049566,-151.0,0.00013699,2]
[335748021,1724475049575,-198.142122,0.00013699,2]
[335748022,1724475049585,-198.142122,0.00013699,2]
[335748023,1724475049594,-151.0,0.00013699,2]
[335748024,1724475049614,-151.0,0.00013699,2]
[335748025,1724475049625,-171.090052,0.00013699,2]
[335748026,1724475049635,-171.090052,0.00013699,2]
[335748027,1724475049645,-171.090052,0.00013699,2]
[335748028,1724475049656,-171.090052,0.00013699,2]
[335748029,1724475049665,-151.0,0.00013699,2]
[335748030,1724475049675,-151.0,0.00013699,2]
[335748031,1724475049687,-151.0,0.00013699,2]
[335748032,1724475049697,-151.0,0.00013699,2]
[335748033,1724475049707,-556.772493,0.00013699,2]
[335748034,1724475049718,-556.772493,0.00013699,2]
[335748035,1724475049729,-556.772493,0.00013699,2]
[335748036,1724475049740,-556.772493,0.00013699,2]
[335748037,1724475049751,-650.059302,0.00013699,2]
[335748038,1724475049764,-650.059302,0.00013699,2]
[335748039,1724475049775,-650.059302,0.00013699,2]
[335748040,1724475049787,-650.059302,0.00013699,2]
[335748041,1724475049799,-151.0,0.00013699,2]
[335748042,1724475049810,-151.0,0.00013699,2]
[335748043,1724475049823,-151.0,0.00013699,2]
[335748044,1724475049833,-3670.473128,0.00013699,2]
[335748045,1724475049844,-151.0,0.00013699,2]
[335748046,1724475049855,-3670.473128,0.00013699,2]
[335748047,1724475049865,-3670.473128,0.00013699,2]
[335748048,1724475049876,-956.001235,0.00013699,2]
[335748049,1724475049886,-3670.473128,0.00013699,2]
[335748050,1724475049896,-956.001235,0.00013699,2]
[335748051,1724475049907,-956.001235,0.00013699,2]
[335748052,1724475049918,-956.001235,0.00013699,2]
[335748053,1724475049930,-3000.0,0.00013699,2]
[335748054,1724475049941,-296.87412,0.00013699,2]
[335748055,1724475049951,-296.87412,0.00013699,2]
[335748056,1724475049960,-296.87412,0.00013699,2]
[335748057,1724475049970,-296.87412,0.00013699,2]
[335748058,1724475049979,-1552.371168,0.00013699,2]
[335748059,1724475049989,-1552.371168,0.00013699,2]
[335748060,1724475049998,-1552.371168,0.00013699,2]
[335748061,1724475050009,-1552.371168,0.00013699,2]
[335748062,1724475050019,-151.0,0.00013699,2]
[335748063,1724475050030,-151.0,0.00013699,2]
[335748064,1724475050040,-3473.52011,0.00013699,2]
[335748065,1724475050050,-3473.52011,0.00013699,2]
[335748066,1724475050060,-151.0,0.00013699,2]
[335748067,1724475050070,-3473.52011,0.00013699,2]
[335748068,1724475050079,-151.0,0.00013699,2]
[335748069,1724475050089,-3473.52011,0.00013699,2]
[335748070,1724475050099,-1173.087327,0.00013699,2]
[335748071,1724475050109,-1173.087327,0.00013699,2]
[335748072,1724475050121,-1173.087327,0.00013699,2]
[335748073,1724475050132,-1173.087327,0.00013699,2]
[335748074,1724475050143,-693.481112,0.00013699,2]
[335748075,1724475050154,-693.481112,0.00013699,2]
[335748076,1724475050165,-693.481112,0.00013699,2]
[335748077,1724475050175,-693.481112,0.00013699,2]
[335748078,1724475050187,-950.259632,0.00013699,2]
[335748079,1724475050196,-950.259632,0.00013699,2]
[335748080,1724475050206,-950.259632,0.00013699,2]
[335748081,1724475050219,-950.259632,0.00013699,2]
[335748082,1724475050229,-151.0,0.00013699,2]
[335748083,1724475050239,-151.0,0.00013699,2]
[335748084,1724475050250,-151.0,0.00013699,2]
[335748085,1724475050259,-234.144972,0.00013699,2]
[335748086,1724475050269,-2957.353554,0.00013699,2]
[335748087,1724475050280,-2957.353554,0.00013699,2]
[335748088,1724475050290,-183.203171,0.00013699,2]
[335748089,1724475050301,-183.203171,0.00013699,2]
[335748090,1724475050311,-2957.353554,0.00013699,2]
[335748091,1724475050322,-2957.353554,0.00013699,2]
[335748092,1724475050336,-183.203171,0.00013699,2]
[335748093,1724475050347,-183.203171,0.00013699,2]
[335748094,1724475050357,-177.411499,0.00013699,2]
[335748095,1724475050367,-177.411499,0.00013699,2]
[335748096,1724475050377,-177.411499,0.00013699,2]
[335748097,1724475050389,-177.411499,0.00013699,2]
[335748098,1724475050401,-434.77802,0.00013699,2]
[335748099,1724475050413,-434.77802,0.00013699,2]
[335748100,1724475050423,-434.77802,0.00013699,2]
[335748101,1724475050434,-434.77802,0.00013699,2]
[335748102,1724475050445,-1750.816841,0.00013699,2]
[335748103,1724475050457,-1750.816841,0.00013699,2]
[335748104,1724475050467,-1750.816841,0.00013699,2]
[335748105,1724475050479,-1750.816841,0.00013699,2]
[335748106,1724475050493,-1040.786388,0.00013699,2]
[335748107,1724475050504,-1040.786388,0.00013699,2]
[335748108,1724475050517,-364.298061,0.00013699,2]
[335748109,1724475050528,-364.298061,0.00013699,2]
[335748110,1724475050538,-1040.786388,0.00013699,2]
[335748111,1724475050548,-1040.786388,0.00013699,2]
[335748112,1724475050558,-364.298061,0.00013699,2]
[335748113,1724475050568,-364.298061,0.00013699,2]
[335748114,1724475050579,-1375.70694,0.00013699,2]
[335748115,1724475050589,-1375.70694,0.00013699,2]
[335748116,1724475050600,-151.0,0.00013699,2]
[335748117,1724475050610,-151.338408,0.00013699,2]
[335748118,1724475050620,-1375.70694,0.00013699,2]
[335748119,1724475050631,-1375.70694,0.00013699,2]
[335748120,1724475050643,-198.403384,0.00013699,2]
[335748121,1724475050656,-285.982218,0.00013699,2]
[335748122,1724475050667,-198.403384,0.00013699,2]
[335748123,1724475050678,-198.403384,0.00013699,2]
[335748124,1724475050697,-198.403384,0.00013699,2]
[335748125,1724475050711,-544.59502,0.00013699,2]
[335748126,1724475050723,-544.59502,0.00013699,2]
[335748127,1724475050735,-151.187678,0.00013699,2]
[335748128,1724475050747,-544.59502,0.00013699,2]
[335748129,1724475050758,-544.59502,0.00013699,2]
[335748130,1724475050769,-194.91980144,0.00013699,2]
[335748131,1724475050780,-500.0,0.00013699,2]
[335748132,1724475050791,-500.0,0.00013699,2]
[335748133,1724475050801,-500.0,0.00013699,2]
[335748134,1724475050812,-500.0,0.00013699,2]
[335748135,1724475050824,-500.0,0.00013699,2]
[335748136,1724475050834,-500.0,0.00013699,2]
[335748137,1724475050844,-500.0,0.00013699,2]
[335748138,1724475050854,-500.0,0.00013699,2]
[335748139,1724475050864,-297.46972901,0.00013699,2]
[335748140,1724475050874,-500.0,0.00013699,2]
[335748141,1724475050885,-500.0,0.00013699,2]
[335748142,1724475050895,-500.0,0.00013699,2]
[335748143,1724475050906,-371.8371613,0.00013699,2]
[335748144,1724475050916,-500.0,0.00013699,2]
[335748145,1724475050926,-500.0,0.00013699,2]
[335748146,1724475050946,-500.0,0.00013699,2]
[335748147,1724475050956,-500.0,0.00013699,2]
[335748148,1724475050966,-500.0,0.00013699,2]
[335748149,1724475050976,-500.0,0.00013699,2]
[335748150,1724475050986,-500.0,0.00013699,2]
[335748151,1724475050996,-716.24495484,0.00013699,2]
[335748152,1724475051006,-716.24495484,0.00013699,2]
[335748153,1724475051016,-716.24495484,0.00013699,2]
[335748154,1724475051025,-716.24495484,0.00013699,2]
[335748155,1724475051036,-716.24495484,0.00013699,2]
[335748156,1724475051046,-716.24495484,0.00013699,2]
[335748157,1724475051056,-716.24495484,0.00013699,2]
[335748158,1724475051066,-716.24495484,0.00013699,2]
[335748159,1724475051075,-716.24495484,0.00013699,2]
[335748160,1724475051085,-150.112233,0.000137,2]
[335748161,1724475051095,-155.975646,0.000137,2]
[335748162,1724475051105,-150.112233,0.000137,2]
[335748163,1724475051114,-150.112233,0.000137,2]
[335748164,1724475051124,-150.112233,0.000137,2]
[335748165,1724475051134,-150.112237,0.000137,2]
[335748166,1724475051143,-2790.4,0.00013734,2]
[335748167,1724475051154,-151.0,0.00013735,2]
[335748168,1724475051163,-463.461263,0.00013735,2]
[335748169,1724475051173,-463.461263,0.00013735,2]
[335748170,1724475051185,-11894.16804779,0.00013772,2]
[335748171,1724475051195,-174.85279054,0.00013792,2]
[335748172,1724475051205,-150.0,0.00013794,2]
[335748173,1724475051216,-150.112233,0.000138,2]
[335748174,1724475051226,-150.112233,0.000138,2]
[335748175,1724475051235,-150.112233,0.000138,2]
[335748176,1724475051246,-150.112233,0.000138,2]
[335748177,1724475051256,-150.112233,0.000138,2]
[335748178,1724475051266,-150.112233,0.000138,2]
[335748179,1724475051276,-150.112233,0.000138,2]
[335748180,1724475051286,-150.112233,0.000138,2]
[335748181,1724475051295,-150.112233,0.000138,2]
[335748182,1724475051305,-806.38,0.00013803,2]
[335748183,1724475051315,-151.0,0.00013804,2]
[335748184,1724475051326,-1481.334203,0.00013804,2]
[335748185,1724475051336,-1481.334203,0.00013804,2]
[335748186,1724475051346,-151.0,0.00013804,2]
[335748187,1724475051596,-151.0,0.00013804,2]
[335748188,1724475051607,-5720.57521366,0.00013826,2]
[335748189,1724475051617,-300.0,0.00013856,2]
[335748190,1724475051627,-1543.66,0.00013868,2]
[335748191,1724475051636,-155.0,0.0001387,2]
[335748192,1724475051645,-375.758555,0.00013872,2]